[Event "Titled Tuesday Blitz August 08 Late 2023"]
[White "Perske, Thore"]
[Black "Matinian, Nikita"]
[WhiteFideId "12902195"]
[BlackFideId "24129100"]
[WhiteElo "2534"]
[BlackElo "2686"]
[Result "0-1"]
[Round "9"]
[TimeControl "180+1"]
[Date "2023.08.08"]
[WhiteClock "0:00:00"]
[BlackClock "0:00:28"]
[Board "47"]

1. d4 {[%clk 0:02:57]}  Nf6 {[%clk 0:02:59]} 2. g3 {[%clk 0:02:56]}  e6 {[%clk 0:02:52]} 3. Bg2 {[%clk 0:02:56]}  c5 {[%clk 0:02:51]} 4. Nf3 {[%clk 0:02:56]}  Nc6 {[%clk 0:02:48]} 5. O-O {[%clk 0:02:56]}  cxd4 {[%clk 0:02:47]} 6. Nxd4 {[%clk 0:02:57]}  h5 {[%clk 0:02:48]} 7. h4 {[%clk 0:02:48]}  Bc5 {[%clk 0:02:37]} 8. Nb3 {[%clk 0:02:47]}  Bb6 {[%clk 0:02:36]} 9. c4 {[%clk 0:02:46]}  d5 {[%clk 0:02:35]} 10. cxd5 {[%clk 0:02:42]}  Nxd5 {[%clk 0:02:28]} 11. Nc3 {[%clk 0:02:34]}  Nxc3 {[%clk 0:02:25]} 12. bxc3 {[%clk 0:02:28]}  Qxd1 {[%clk 0:02:25]} 13. Rxd1 {[%clk 0:02:28]}  e5 {[%clk 0:02:26]} 14. Ba3 {[%clk 0:01:55]}  Bg4 {[%clk 0:02:10]} 15. Rd2 {[%clk 0:01:48]}  Rd8 {[%clk 0:02:08]} 16. Rxd8+ {[%clk 0:01:39]}  Kxd8 {[%clk 0:02:09]} 17. Rd1+ {[%clk 0:01:33]}  Kc7 {[%clk 0:02:09]} 18. Kf1 {[%clk 0:01:34]}  Rd8 {[%clk 0:02:05]} 19. Rxd8 {[%clk 0:01:30]}  Nxd8 {[%clk 0:01:59]} 20. Bd5 {[%clk 0:01:28]}  Be6 {[%clk 0:01:55]} 21. c4 {[%clk 0:01:26]}  Bxd5 {[%clk 0:01:50]} 22. cxd5 {[%clk 0:01:27]}  Kd7 {[%clk 0:01:46]} 23. e4 {[%clk 0:01:25]}  g6 {[%clk 0:01:44]} 24. Ke2 {[%clk 0:01:14]}  f5 {[%clk 0:01:42]} 25. f3 {[%clk 0:01:13]}  Nf7 {[%clk 0:01:42]} 26. Nd2 {[%clk 0:01:09]}  Bd4 {[%clk 0:01:39]} 27. Nc4 {[%clk 0:01:07]}  b5 {[%clk 0:01:39]} 28. Na5 {[%clk 0:00:58]}  Bb6 {[%clk 0:01:39]} 29. Nc6 {[%clk 0:00:56]}  a5 {[%clk 0:01:36]} 30. Bb2 {[%clk 0:00:54]}  Bc7 {[%clk 0:01:36]} 31. Kd3 {[%clk 0:00:50]}  a4 {[%clk 0:01:19]} 32. Bc3 {[%clk 0:00:45]}  Bd6 {[%clk 0:01:12]} 33. Bb2 {[%clk 0:00:36]}  Kc7 {[%clk 0:01:02]} 34. Bc3 {[%clk 0:00:35]}  Kb6 {[%clk 0:01:02]} 35. Ba5+ {[%clk 0:00:33]}  Kb7 {[%clk 0:00:59]} 36. Bc3 {[%clk 0:00:33]}  Ka6 {[%clk 0:00:49]} 37. Bb4 {[%clk 0:00:28]}  Bxb4 {[%clk 0:00:45]} 38. Nxb4+ {[%clk 0:00:29]}  Kb6 {[%clk 0:00:45]} 39. Nc6 {[%clk 0:00:26]}  Kc5 {[%clk 0:00:43]} 40. Ne7 {[%clk 0:00:24]}  fxe4+ {[%clk 0:00:35]} 41. fxe4 {[%clk 0:00:22]}  g5 {[%clk 0:00:35]} 42. hxg5 {[%clk 0:00:20]}  Nxg5 {[%clk 0:00:36]} 43. Ng6 {[%clk 0:00:19]}  Nf7 {[%clk 0:00:33]} 44. Nf8 {[%clk 0:00:11]}  Kb4 {[%clk 0:00:30]} 45. Kc2 {[%clk 0:00:10]}  Kc4 {[%clk 0:00:29]} 46. Ne6 {[%clk 0:00:08]}  b4 {[%clk 0:00:29]} 47. Ng7 {[%clk 0:00:00]}  Nd6 {[%clk 0:00:28]} 0-1


[Site "https://www.chess.com"]

[Event "Titled Tuesday Blitz August 08 Late 2023"]
[White "chess123456s"]
[Black "Golubev, Mikhail"]
[BlackFideId "14100983"]
[WhiteElo "2517"]
[BlackElo "2616"]
[Result "1-0"]
[Round "9"]
[TimeControl "180+1"]
[Date "2023.08.08"]
[WhiteClock "0:00:09"]
[BlackClock "0:00:00"]
[Board "50"]

1. c4 {[%clk 0:02:55]}  g6 {[%clk 0:02:59]} 2. d4 {[%clk 0:02:55]}  Bg7 {[%clk 0:02:59]} 3. Nc3 {[%clk 0:02:55]}  d6 {[%clk 0:02:59]} 4. Nf3 {[%clk 0:02:54]}  Nf6 {[%clk 0:02:59]} 5. g3 {[%clk 0:02:55]}  O-O {[%clk 0:02:59]} 6. Bg2 {[%clk 0:02:55]}  Nbd7 {[%clk 0:02:59]} 7. O-O {[%clk 0:02:55]}  e5 {[%clk 0:02:58]} 8. e4 {[%clk 0:02:55]}  Re8 {[%clk 0:02:57]} 9. Re1 {[%clk 0:02:55]}  exd4 {[%clk 0:02:55]} 10. Nxd4 {[%clk 0:02:56]}  c6 {[%clk 0:02:55]} 11. b3 {[%clk 0:02:51]}  Ng4 {[%clk 0:02:47]} 12. Bb2 {[%clk 0:02:46]}  Nc5 {[%clk 0:02:32]} 13. b4 {[%clk 0:02:13]}  Qf6 {[%clk 0:01:50]} 14. Nf3 {[%clk 0:01:59]}  Nxe4 {[%clk 0:01:45]} 15. Nxe4 {[%clk 0:01:46]}  Qxb2 {[%clk 0:01:40]} 16. Rb1 {[%clk 0:01:45]}  Qxa2 {[%clk 0:01:37]} 17. Nxd6 {[%clk 0:01:44]}  Qxf2+ {[%clk 0:01:32]} 18. Kh1 {[%clk 0:01:43]}  Rd8 {[%clk 0:00:32]} 19. Rb3 {[%clk 0:01:13]}  Be6 {[%clk 0:00:22]} 20. Rd3 {[%clk 0:01:08]}  Bxc4 {[%clk 0:00:09]} 21. Nxc4 {[%clk 0:01:06]}  Rxd3 {[%clk 0:00:07]} 22. Qxd3 {[%clk 0:01:05]}  Qxe1+ {[%clk 0:00:06]} 23. Nxe1 {[%clk 0:01:06]}  Nf2+ {[%clk 0:00:06]} 24. Kg1 {[%clk 0:01:06]}  Nxd3 {[%clk 0:00:06]} 25. Nxd3 {[%clk 0:01:07]}  Rd8 {[%clk 0:00:05]} 26. Nc5 {[%clk 0:00:39]}  Rd1+ {[%clk 0:00:05]} 27. Kf2 {[%clk 0:00:39]}  Bd4+ {[%clk 0:00:05]} 28. Ke2 {[%clk 0:00:35]}  Rc1 {[%clk 0:00:06]} 29. Kd3 {[%clk 0:00:29]}  Bxc5 {[%clk 0:00:05]} 30. bxc5 {[%clk 0:00:30]}  b6 {[%clk 0:00:05]} 31. cxb6 {[%clk 0:00:29]}  axb6 {[%clk 0:00:05]} 32. Bxc6 {[%clk 0:00:27]}  Kf8 {[%clk 0:00:04]} 33. Bd5 {[%clk 0:00:18]}  b5 {[%clk 0:00:03]} 34. Nd6 {[%clk 0:00:17]}  Ke7 {[%clk 0:00:02]} 35. Ne4 {[%clk 0:00:13]}  Rh1 {[%clk 0:00:00]} 36. h4 {[%clk 0:00:09]} 1-0


[Site "https://www.chess.com"]

[Event "Titled Tuesday Blitz August 08 Late 2023"]
[White "Di Berardino, Diego Rafael"]
[Black "Dragomirescu, Robin-Alexandru"]
[WhiteFideId "2105446"]
[BlackFideId "1213849"]
[WhiteElo "2605"]
[BlackElo "2512"]
[Result "1-0"]
[Round "9"]
[TimeControl "180+1"]
[Date "2023.08.08"]
[WhiteClock "0:00:12"]
[BlackClock "0:00:42"]
[Board "51"]

1. d4 {[%clk 0:03:00]}  d5 {[%clk 0:02:57]} 2. c4 {[%clk 0:03:00]}  Nc6 {[%clk 0:02:58]} 3. Nf3 {[%clk 0:02:58]}  Bg4 {[%clk 0:02:57]} 4. cxd5 {[%clk 0:02:57]}  Bxf3 {[%clk 0:02:57]} 5. gxf3 {[%clk 0:02:52]}  Qxd5 {[%clk 0:02:58]} 6. e3 {[%clk 0:02:52]}  e5 {[%clk 0:02:58]} 7. Nc3 {[%clk 0:02:51]}  Bb4 {[%clk 0:02:59]} 8. Bd2 {[%clk 0:02:50]}  Bxc3 {[%clk 0:03:00]} 9. bxc3 {[%clk 0:02:48]}  Nf6 {[%clk 0:03:00]} 10. Be2 {[%clk 0:02:40]}  O-O {[%clk 0:02:54]} 11. Qb3 {[%clk 0:02:38]}  Qxb3 {[%clk 0:02:45]} 12. axb3 {[%clk 0:02:37]}  exd4 {[%clk 0:02:45]} 13. cxd4 {[%clk 0:02:36]}  a5 {[%clk 0:02:39]} 14. Bb5 {[%clk 0:02:28]}  Nb4 {[%clk 0:02:36]} 15. Ke2 {[%clk 0:02:22]}  c6 {[%clk 0:02:36]} 16. Bd3 {[%clk 0:02:08]}  Rfd8 {[%clk 0:02:24]} 17. Rhc1 {[%clk 0:01:52]}  Nfd5 {[%clk 0:01:55]} 18. Be4 {[%clk 0:01:21]}  Ne7 {[%clk 0:01:50]} 19. Rc5 {[%clk 0:01:09]}  b6 {[%clk 0:01:43]} 20. Rc4 {[%clk 0:01:08]}  Nbd5 {[%clk 0:01:43]} 21. Bd3 {[%clk 0:00:57]}  g6 {[%clk 0:01:37]} 22. e4 {[%clk 0:00:57]}  Nf6 {[%clk 0:01:38]} 23. Be3 {[%clk 0:00:33]}  b5 {[%clk 0:01:35]} 24. Rc2 {[%clk 0:00:32]}  Ra6 {[%clk 0:01:32]} 25. Rca2 {[%clk 0:00:24]}  Rda8 {[%clk 0:01:32]} 26. d5 {[%clk 0:00:25]}  cxd5 {[%clk 0:01:31]} 27. Bxb5 {[%clk 0:00:25]}  Re6 {[%clk 0:01:29]} 28. Rxa5 {[%clk 0:00:20]}  Rxa5 {[%clk 0:01:30]} 29. Rxa5 {[%clk 0:00:20]}  dxe4 {[%clk 0:01:31]} 30. Bd4 {[%clk 0:00:15]}  exf3+ {[%clk 0:01:27]} 31. Kxf3 {[%clk 0:00:16]}  Nf5 {[%clk 0:01:27]} 32. Bc3 {[%clk 0:00:12]}  Nd6 {[%clk 0:01:17]} 33. Bd3 {[%clk 0:00:10]}  Kf8 {[%clk 0:01:14]} 34. Ra8+ {[%clk 0:00:09]}  Ke7 {[%clk 0:01:14]} 35. Ra7+ {[%clk 0:00:09]}  Nd7 {[%clk 0:01:13]} 36. Bb4 {[%clk 0:00:08]}  Re5 {[%clk 0:01:09]} 37. Bc4 {[%clk 0:00:03]}  Rf5+ {[%clk 0:00:58]} 38. Kg2 {[%clk 0:00:03]}  Rg5+ {[%clk 0:00:58]} 39. Kf1 {[%clk 0:00:03]}  Rg4 {[%clk 0:00:58]} 40. Ra6 {[%clk 0:00:03]}  Rd4 {[%clk 0:00:59]} 41. Bxd6+ {[%clk 0:00:02]}  Rxd6 {[%clk 0:00:58]} 42. Rxd6 {[%clk 0:00:03]}  Kxd6 {[%clk 0:00:59]} 43. Bxf7 {[%clk 0:00:03]}  Ne5 {[%clk 0:00:57]} 44. Bg8 {[%clk 0:00:03]}  h5 {[%clk 0:00:58]} 45. Ke2 {[%clk 0:00:04]}  Kc5 {[%clk 0:00:58]} 46. h4 {[%clk 0:00:04]}  Kd4 {[%clk 0:00:56]} 47. f3 {[%clk 0:00:05]}  Nd7 {[%clk 0:00:54]} 48. Kf2 {[%clk 0:00:05]}  Nf6 {[%clk 0:00:53]} 49. Bf7 {[%clk 0:00:06]}  Kc3 {[%clk 0:00:49]} 50. Ke3 {[%clk 0:00:06]}  Kb4 {[%clk 0:00:47]} 51. Kf4 {[%clk 0:00:06]}  Nd7 {[%clk 0:00:45]} 52. Kg5 {[%clk 0:00:05]}  Ne5 {[%clk 0:00:45]} 53. Bd5 {[%clk 0:00:05]}  Kc5 {[%clk 0:00:43]} 54. Be4 {[%clk 0:00:06]}  Kb4 {[%clk 0:00:41]} 55. f4 {[%clk 0:00:06]}  Nd7 {[%clk 0:00:38]} 56. Bxg6 {[%clk 0:00:05]}  Kxb3 {[%clk 0:00:38]} 57. Bxh5 {[%clk 0:00:06]}  Kc4 {[%clk 0:00:39]} 58. Bf7+ {[%clk 0:00:06]}  Kd4 {[%clk 0:00:39]} 59. h5 {[%clk 0:00:07]}  Nf8 {[%clk 0:00:39]} 60. Bg6 {[%clk 0:00:07]}  Kd5 {[%clk 0:00:39]} 61. h6 {[%clk 0:00:08]}  Ke6 {[%clk 0:00:39]} 62. h7 {[%clk 0:00:08]}  Nxh7+ {[%clk 0:00:39]} 63. Bxh7 {[%clk 0:00:08]}  Kf7 {[%clk 0:00:40]} 64. Be4 {[%clk 0:00:09]}  Kf8 {[%clk 0:00:41]} 65. f5 {[%clk 0:00:10]}  Kg7 {[%clk 0:00:42]} 66. f6+ {[%clk 0:00:10]}  Kf8 {[%clk 0:00:43]} 67. Bd5 {[%clk 0:00:10]}  Ke8 {[%clk 0:00:44]} 68. Kg6 {[%clk 0:00:11]}  Kf8 {[%clk 0:00:45]} 69. Bc4 {[%clk 0:00:11]}  Ke8 {[%clk 0:00:42]} 70. Kg7 {[%clk 0:00:12]} 1-0


[Site "https://www.chess.com"]

[Event "Titled Tuesday Blitz August 08 Late 2023"]
[White "Reprintsev, Alexander"]
[Black "Erzhanov, Arman"]
[WhiteFideId "14100541"]
[BlackFideId "4138821"]
[WhiteElo "2501"]
[BlackElo "2603"]
[Result "1-0"]
[Round "9"]
[TimeControl "180+1"]
[Date "2023.08.08"]
[WhiteClock "0:00:07"]
[BlackClock "0:00:55"]
[Board "52"]

1. e4 {[%clk 0:03:00]}  d6 {[%clk 0:02:59]} 2. d4 {[%clk 0:03:00]}  Nf6 {[%clk 0:02:59]} 3. Nc3 {[%clk 0:02:59]}  c6 {[%clk 0:02:59]} 4. Be2 {[%clk 0:02:48]}  b5 {[%clk 0:02:59]} 5. a3 {[%clk 0:02:44]}  e5 {[%clk 0:02:56]} 6. Be3 {[%clk 0:02:35]}  Nbd7 {[%clk 0:02:56]} 7. g4 {[%clk 0:02:34]}  Nb6 {[%clk 0:02:45]} 8. g5 {[%clk 0:02:32]}  Nfd7 {[%clk 0:02:45]} 9. h4 {[%clk 0:02:14]}  a6 {[%clk 0:02:42]} 10. b3 {[%clk 0:02:12]}  Be7 {[%clk 0:02:41]} 11. Qd2 {[%clk 0:02:10]}  Qc7 {[%clk 0:02:34]} 12. f4 {[%clk 0:02:06]}  Bb7 {[%clk 0:02:26]} 13. Nf3 {[%clk 0:02:05]}  c5 {[%clk 0:02:12]} 14. dxe5 {[%clk 0:01:59]}  dxe5 {[%clk 0:02:12]} 15. O-O-O {[%clk 0:01:57]}  O-O-O {[%clk 0:02:01]} 16. Nd5 {[%clk 0:01:47]}  Nxd5 {[%clk 0:01:58]} 17. exd5 {[%clk 0:01:47]}  e4 {[%clk 0:01:52]} 18. Nh2 {[%clk 0:01:32]}  Nb6 {[%clk 0:01:51]} 19. Ng4 {[%clk 0:01:08]}  Nxd5 {[%clk 0:01:46]} 20. Ne5 {[%clk 0:01:06]}  Nxf4 {[%clk 0:01:29]} 21. Bg4+ {[%clk 0:01:01]}  Kb8 {[%clk 0:01:20]} 22. Nd7+ {[%clk 0:00:53]}  Rxd7 {[%clk 0:01:20]} 23. Qxd7 {[%clk 0:00:51]}  Nd5 {[%clk 0:01:11]} 24. Rxd5 {[%clk 0:00:43]}  Bxd5 {[%clk 0:01:08]} 25. Qxd5 {[%clk 0:00:42]}  c4 {[%clk 0:01:05]} 26. Qxe4 {[%clk 0:00:32]}  Bxa3+ {[%clk 0:01:04]} 27. Kb1 {[%clk 0:00:31]}  cxb3 {[%clk 0:01:00]} 28. cxb3 {[%clk 0:00:21]}  Rd8 {[%clk 0:00:56]} 29. Bf4 {[%clk 0:00:19]}  Bd6 {[%clk 0:00:57]} 30. Rf1 {[%clk 0:00:18]}  Bxf4 {[%clk 0:00:54]} 31. Qxf4 {[%clk 0:00:18]}  Rd6 {[%clk 0:00:53]} 32. Qxf7 {[%clk 0:00:17]}  Qxf7 {[%clk 0:00:46]} 33. Rxf7 {[%clk 0:00:17]}  Rd4 {[%clk 0:00:47]} 34. Bf5 {[%clk 0:00:16]}  g6 {[%clk 0:00:45]} 35. Rxh7 {[%clk 0:00:13]}  gxf5 {[%clk 0:00:45]} 36. g6 {[%clk 0:00:13]}  Rd1+ {[%clk 0:00:44]} 37. Kc2 {[%clk 0:00:12]}  Rg1 {[%clk 0:00:45]} 38. g7 {[%clk 0:00:12]}  Rg2+ {[%clk 0:00:46]} 39. Kd3 {[%clk 0:00:12]}  f4 {[%clk 0:00:47]} 40. Rh8+ {[%clk 0:00:11]}  Kc7 {[%clk 0:00:47]} 41. g8=Q {[%clk 0:00:11]}  Rxg8 {[%clk 0:00:48]} 42. Rxg8 {[%clk 0:00:12]}  Kd6 {[%clk 0:00:49]} 43. Ke4 {[%clk 0:00:12]}  f3 {[%clk 0:00:48]} 44. Kxf3 {[%clk 0:00:12]}  a5 {[%clk 0:00:49]} 45. h5 {[%clk 0:00:13]}  Kc5 {[%clk 0:00:49]} 46. h6 {[%clk 0:00:12]}  Kb4 {[%clk 0:00:49]} 47. h7 {[%clk 0:00:11]}  Kxb3 {[%clk 0:00:50]} 48. h8=Q {[%clk 0:00:12]}  b4 {[%clk 0:00:51]} 49. Rb8 {[%clk 0:00:12]}  Ka4 {[%clk 0:00:52]} 50. Qe8+ {[%clk 0:00:11]}  Kb3 {[%clk 0:00:53]} 51. Qb5 {[%clk 0:00:11]}  Kc3 {[%clk 0:00:52]} 52. Qxa5 {[%clk 0:00:10]}  Kd3 {[%clk 0:00:53]} 53. Qxb4 {[%clk 0:00:09]}  Kc2 {[%clk 0:00:53]} 54. Rc8+ {[%clk 0:00:09]}  Kd1 {[%clk 0:00:54]} 55. Qd4+ {[%clk 0:00:08]}  Ke1 {[%clk 0:00:55]} 56. Rc1# {[%clk 0:00:07]} 1-0


[Site "https://www.chess.com"]

[Event "Titled Tuesday Blitz August 08 Late 2023"]
[White "Pinto, Daniel"]
[Black "Deng, Henry"]
[WhiteFideId "3303144"]
[BlackFideId "30965454"]
[WhiteElo "2429"]
[BlackElo "2577"]
[Result "1/2-1/2"]
[Round "9"]
[TimeControl "180+1"]
[Date "2023.08.08"]
[WhiteClock "0:00:02"]
[BlackClock "0:00:08"]
[Board "55"]

1. e4 {[%clk 0:02:32]}  c5 {[%clk 0:02:59]} 2. Nf3 {[%clk 0:02:32]}  e6 {[%clk 0:02:58]} 3. c3 {[%clk 0:02:33]}  Nf6 {[%clk 0:02:58]} 4. e5 {[%clk 0:02:31]}  Nd5 {[%clk 0:02:58]} 5. d4 {[%clk 0:02:30]}  cxd4 {[%clk 0:02:59]} 6. cxd4 {[%clk 0:02:31]}  d6 {[%clk 0:03:00]} 7. Bd3 {[%clk 0:02:25]}  Be7 {[%clk 0:02:59]} 8. O-O {[%clk 0:02:25]}  O-O {[%clk 0:02:59]} 9. Nbd2 {[%clk 0:02:24]}  Nc6 {[%clk 0:02:57]} 10. Nc4 {[%clk 0:02:18]}  h6 {[%clk 0:02:51]} 11. Bb1 {[%clk 0:02:04]}  dxe5 {[%clk 0:02:49]} 12. dxe5 {[%clk 0:02:03]}  Ndb4 {[%clk 0:02:47]} 13. Qe2 {[%clk 0:02:03]}  h5 {[%clk 0:02:22]} 14. Rd1 {[%clk 0:01:48]}  Qc7 {[%clk 0:02:19]} 15. a3 {[%clk 0:01:23]}  Nd5 {[%clk 0:02:19]} 16. Bg5 {[%clk 0:01:15]}  Bd7 {[%clk 0:01:55]} 17. Bxe7 {[%clk 0:01:13]}  Ncxe7 {[%clk 0:01:56]} 18. Ng5 {[%clk 0:01:12]}  g6 {[%clk 0:01:56]} 19. Ne4 {[%clk 0:01:10]}  Kg7 {[%clk 0:01:54]} 20. b3 {[%clk 0:00:58]}  Bb5 {[%clk 0:01:44]} 21. a4 {[%clk 0:00:45]}  Bxc4 {[%clk 0:01:41]} 22. bxc4 {[%clk 0:00:46]}  Nf4 {[%clk 0:01:41]} 23. Qb2 {[%clk 0:00:41]}  h4 {[%clk 0:01:23]} 24. Nd6 {[%clk 0:00:31]}  Nc6 {[%clk 0:01:17]} 25. Be4 {[%clk 0:00:29]}  Rab8 {[%clk 0:01:04]} 26. Rac1 {[%clk 0:00:17]}  Rfd8 {[%clk 0:01:02]} 27. g3 {[%clk 0:00:17]}  hxg3 {[%clk 0:01:00]} 28. fxg3 {[%clk 0:00:16]}  Nh3+ {[%clk 0:01:01]} 29. Kh1 {[%clk 0:00:11]}  Ng5 {[%clk 0:01:01]} 30. Bg2 {[%clk 0:00:11]}  Rd7 {[%clk 0:00:56]} 31. c5 {[%clk 0:00:10]}  Nd8 {[%clk 0:00:48]} 32. h4 {[%clk 0:00:10]}  Nh7 {[%clk 0:00:49]} 33. Qf2 {[%clk 0:00:09]}  Qa5 {[%clk 0:00:42]} 34. Qf4 {[%clk 0:00:09]}  Nf8 {[%clk 0:00:31]} 35. Ne8+ {[%clk 0:00:09]}  Kg8 {[%clk 0:00:20]} 36. Rxd7 {[%clk 0:00:09]}  Nxd7 {[%clk 0:00:19]} 37. Nf6+ {[%clk 0:00:07]}  Nxf6 {[%clk 0:00:19]} 38. exf6 {[%clk 0:00:07]}  Kh7 {[%clk 0:00:17]} 39. Qxb8 {[%clk 0:00:07]}  Qd2 {[%clk 0:00:17]} 40. Qf4 {[%clk 0:00:07]}  Qd7 {[%clk 0:00:15]} 41. Bf3 {[%clk 0:00:06]}  Nc6 {[%clk 0:00:13]} 42. Rd1 {[%clk 0:00:06]}  Qc8 {[%clk 0:00:12]} 43. Bxc6 {[%clk 0:00:04]}  e5 {[%clk 0:00:12]} 44. Qf3 {[%clk 0:00:03]}  bxc6 {[%clk 0:00:11]} 45. Kg2 {[%clk 0:00:02]}  Qa6 {[%clk 0:00:11]} 46. Rd6 {[%clk 0:00:02]}  Qxa4 {[%clk 0:00:10]} 47. Rd7 {[%clk 0:00:03]}  Kg8 {[%clk 0:00:10]} 48. Qf2 {[%clk 0:00:03]}  Qe4+ {[%clk 0:00:09]} 49. Qf3 {[%clk 0:00:03]}  Qc2+ {[%clk 0:00:09]} 50. Qf2 {[%clk 0:00:03]}  Qe4+ {[%clk 0:00:09]} 51. Kf1 {[%clk 0:00:04]}  Qb1+ {[%clk 0:00:09]} 52. Ke2 {[%clk 0:00:04]}  Qe4+ {[%clk 0:00:09]} 53. Kd2 {[%clk 0:00:03]}  Qb4+ {[%clk 0:00:09]} 54. Kc1 {[%clk 0:00:03]}  Qc3+ {[%clk 0:00:09]} 55. Qc2 {[%clk 0:00:03]}  Qe1+ {[%clk 0:00:07]} 56. Rd1 {[%clk 0:00:04]}  Qe3+ {[%clk 0:00:07]} 57. Rd2 {[%clk 0:00:03]}  Qa3+ {[%clk 0:00:07]} 58. Kd1 {[%clk 0:00:03]}  Qf3+ {[%clk 0:00:06]} 59. Kc1 {[%clk 0:00:02]}  Qa3+ {[%clk 0:00:06]} 60. Kb1 {[%clk 0:00:03]}  Qb4+ {[%clk 0:00:07]} 61. Ka2 {[%clk 0:00:03]}  Qa5+ {[%clk 0:00:07]} 62. Kb3 {[%clk 0:00:03]}  Qb5+ {[%clk 0:00:07]} 63. Ka3 {[%clk 0:00:03]}  Qa5+ {[%clk 0:00:07]} 64. Kb2 {[%clk 0:00:02]}  Qb4+ {[%clk 0:00:08]} 65. Kc1 {[%clk 0:00:02]}  Qa3+ {[%clk 0:00:08]} 1/2-1/2


[Site "https://www.chess.com"]

[Event "Titled Tuesday Blitz August 08 Late 2023"]
[White "Andrews, Todd"]
[Black "Graif, William"]
[WhiteFideId "2012456"]
[BlackFideId "2609835"]
[WhiteElo "2394"]
[BlackElo "2566"]
[Result "0-1"]
[Round "9"]
[TimeControl "180+1"]
[Date "2023.08.08"]
[WhiteClock "0:00:03"]
[BlackClock "0:00:22"]
[Board "57"]

1. e4 {[%clk 0:03:00]}  e5 {[%clk 0:02:58]} 2. Nf3 {[%clk 0:03:00]}  Bc5 {[%clk 0:02:57]} 3. Bc4 {[%clk 0:02:58]}  Nf6 {[%clk 0:02:57]} 4. d3 {[%clk 0:02:58]}  Nc6 {[%clk 0:02:56]} 5. c3 {[%clk 0:02:58]}  d6 {[%clk 0:02:56]} 6. Bb3 {[%clk 0:02:58]}  Ne7 {[%clk 0:02:34]} 7. Nbd2 {[%clk 0:02:52]}  Ng6 {[%clk 0:02:29]} 8. Nf1 {[%clk 0:02:52]}  O-O {[%clk 0:02:14]} 9. h3 {[%clk 0:02:49]}  d5 {[%clk 0:01:51]} 10. Qe2 {[%clk 0:02:48]}  dxe4 {[%clk 0:01:20]} 11. dxe4 {[%clk 0:02:48]}  a5 {[%clk 0:01:07]} 12. Bg5 {[%clk 0:02:31]}  a4 {[%clk 0:00:56]} 13. Bc2 {[%clk 0:02:31]}  b6 {[%clk 0:00:45]} 14. Rd1 {[%clk 0:02:28]}  Qe7 {[%clk 0:00:42]} 15. Ng3 {[%clk 0:02:27]}  h6 {[%clk 0:00:34]} 16. Bc1 {[%clk 0:02:26]}  Nf4 {[%clk 0:00:21]} 17. Bxf4 {[%clk 0:02:24]}  exf4 {[%clk 0:00:21]} 18. Nf5 {[%clk 0:01:53]}  Bxf5 {[%clk 0:00:20]} 19. exf5 {[%clk 0:01:54]}  Qxe2+ {[%clk 0:00:18]} 20. Kxe2 {[%clk 0:01:55]}  Rfe8+ {[%clk 0:00:19]} 21. Kf1 {[%clk 0:01:54]}  a3 {[%clk 0:00:17]} 22. b4 {[%clk 0:01:53]}  Bf8 {[%clk 0:00:16]} 23. g4 {[%clk 0:01:43]}  c5 {[%clk 0:00:16]} 24. bxc5 {[%clk 0:01:37]}  Bxc5 {[%clk 0:00:17]} 25. Kg2 {[%clk 0:01:36]}  Re2 {[%clk 0:00:16]} 26. Rd2 {[%clk 0:01:36]}  Rae8 {[%clk 0:00:15]} 27. Rhd1 {[%clk 0:01:36]}  Bxf2 {[%clk 0:00:13]} 28. Rxe2 {[%clk 0:01:12]}  Rxe2 {[%clk 0:00:13]} 29. Rd8+ {[%clk 0:01:12]}  Kh7 {[%clk 0:00:13]} 30. Rd2 {[%clk 0:01:01]}  Rxd2 {[%clk 0:00:13]} 31. Nxd2 {[%clk 0:01:02]}  Be1 {[%clk 0:00:13]} 32. Nc4 {[%clk 0:00:59]}  Bxc3 {[%clk 0:00:12]} 33. Nxa3 {[%clk 0:00:57]}  Kg8 {[%clk 0:00:11]} 34. Kf3 {[%clk 0:00:54]}  Be5 {[%clk 0:00:11]} 35. Nc4 {[%clk 0:00:53]}  Bc7 {[%clk 0:00:12]} 36. a4 {[%clk 0:00:52]}  Kf8 {[%clk 0:00:12]} 37. h4 {[%clk 0:00:51]}  Ke7 {[%clk 0:00:11]} 38. g5 {[%clk 0:00:49]}  hxg5 {[%clk 0:00:12]} 39. hxg5 {[%clk 0:00:50]}  Nd5 {[%clk 0:00:11]} 40. Nd2 {[%clk 0:00:40]}  Kd7 {[%clk 0:00:11]} 41. Ne4 {[%clk 0:00:39]}  Kc6 {[%clk 0:00:11]} 42. Bb3 {[%clk 0:00:36]}  Ne3 {[%clk 0:00:09]} 43. Bxf7 {[%clk 0:00:36]}  Nxf5 {[%clk 0:00:10]} 44. Kg4 {[%clk 0:00:30]}  Nd4 {[%clk 0:00:09]} 45. Kh5 {[%clk 0:00:28]}  f3 {[%clk 0:00:09]} 46. Kg6 {[%clk 0:00:28]}  Be5 {[%clk 0:00:08]} 47. Be8+ {[%clk 0:00:26]}  Kd5 {[%clk 0:00:08]} 48. Nc3+ {[%clk 0:00:26]}  Kc4 {[%clk 0:00:08]} 49. Ne4 {[%clk 0:00:24]}  Kd3 {[%clk 0:00:08]} 50. Nf2+ {[%clk 0:00:22]}  Ke2 {[%clk 0:00:09]} 51. Ng4 {[%clk 0:00:22]}  f2 {[%clk 0:00:09]} 52. Nxf2 {[%clk 0:00:20]}  Kxf2 {[%clk 0:00:09]} 53. Kf7 {[%clk 0:00:19]}  Kg3 {[%clk 0:00:09]} 54. g6 {[%clk 0:00:19]}  Kf4 {[%clk 0:00:09]} 55. Bd7 {[%clk 0:00:19]}  Kg5 {[%clk 0:00:10]} 56. Be8 {[%clk 0:00:18]}  Bf6 {[%clk 0:00:10]} 57. Bd7 {[%clk 0:00:18]}  Nf3 {[%clk 0:00:10]} 58. Be8 {[%clk 0:00:17]}  Ne5+ {[%clk 0:00:11]} 59. Ke6 {[%clk 0:00:16]}  Nxg6 {[%clk 0:00:12]} 60. Kd6 {[%clk 0:00:17]}  Bd4 {[%clk 0:00:11]} 61. Kc6 {[%clk 0:00:16]}  Ne5+ {[%clk 0:00:11]} 62. Kd5 {[%clk 0:00:16]}  Bb2 {[%clk 0:00:10]} 63. Ke4 {[%clk 0:00:15]}  Kf6 {[%clk 0:00:10]} 64. Bb5 {[%clk 0:00:15]}  g5 {[%clk 0:00:10]} 65. Be2 {[%clk 0:00:13]}  g4 {[%clk 0:00:10]} 66. Kd5 {[%clk 0:00:12]}  g3 {[%clk 0:00:10]} 67. Bf1 {[%clk 0:00:13]}  Kg5 {[%clk 0:00:09]} 68. Kd6 {[%clk 0:00:11]}  Kf4 {[%clk 0:00:10]} 69. Bg2 {[%clk 0:00:09]}  Bd4 {[%clk 0:00:10]} 70. Kc7 {[%clk 0:00:09]}  Ke3 {[%clk 0:00:09]} 71. Kb7 {[%clk 0:00:08]}  Nc4 {[%clk 0:00:09]} 72. Ka6 {[%clk 0:00:08]}  Kf2 {[%clk 0:00:09]} 73. Bd5 {[%clk 0:00:07]}  Na5 {[%clk 0:00:09]} 74. Kb5 {[%clk 0:00:05]}  g2 {[%clk 0:00:10]} 75. Bxg2 {[%clk 0:00:05]}  Kxg2 {[%clk 0:00:11]} 76. Ka6 {[%clk 0:00:05]}  Kf3 {[%clk 0:00:11]} 77. Kb5 {[%clk 0:00:06]}  Kf4 {[%clk 0:00:12]} 78. Kb4 {[%clk 0:00:06]}  Ke4 {[%clk 0:00:12]} 79. Kb5 {[%clk 0:00:07]}  Kd5 {[%clk 0:00:13]} 80. Kb4 {[%clk 0:00:08]}  Kc6 {[%clk 0:00:13]} 81. Ka3 {[%clk 0:00:07]}  Bc5+ {[%clk 0:00:13]} 82. Kb2 {[%clk 0:00:07]}  Kd5 {[%clk 0:00:14]} 83. Kc3 {[%clk 0:00:06]}  Ke4 {[%clk 0:00:14]} 84. Kc2 {[%clk 0:00:06]}  Kd4 {[%clk 0:00:15]} 85. Kb2 {[%clk 0:00:05]}  Kc4 {[%clk 0:00:16]} 86. Ka2 {[%clk 0:00:04]}  Kb4 {[%clk 0:00:17]} 87. Kb2 {[%clk 0:00:04]}  Kxa4 {[%clk 0:00:18]} 88. Kc3 {[%clk 0:00:04]}  b5 {[%clk 0:00:19]} 89. Kb2 {[%clk 0:00:03]}  b4 {[%clk 0:00:19]} 90. Kb1 {[%clk 0:00:01]}  b3 {[%clk 0:00:20]} 91. Kb2 {[%clk 0:00:01]}  Bd4+ {[%clk 0:00:21]} 92. Kb1 {[%clk 0:00:01]}  Ka3 {[%clk 0:00:21]} 93. Kc1 {[%clk 0:00:02]}  Ka2 {[%clk 0:00:21]} 94. Kd2 {[%clk 0:00:03]}  b2 {[%clk 0:00:22]} 95. Kd3 {[%clk 0:00:04]}  b1=Q+ {[%clk 0:00:22]} 96. Kxd4 {[%clk 0:00:03]}  Qb4+ {[%clk 0:00:22]} 0-1


[Site "https://www.chess.com"]